bitfinex-derivatives/quotes_BTCF0:USTF0_20250127
["timestamp","ask_amount","ask_price","bid_price","bid_amount"]
[1737939715292,0.557139,101910.0,101900.0,1.67340704]
[1737939715794,0.196359,101900.0,101890.0,0.52651315]
[1737939715985,0.912059,101900.0,101890.0,0.52651315]
[1737939716191,0.912059,101900.0,101890.0,0.52666064]
[1737939716690,0.912059,101900.0,101890.0,0.00014749]
[1737939717992,0.53862484,101900.0,101890.0,0.00014749]
[1737939718696,0.53862484,101900.0,101890.0,4.9e-07]
[1737939718697,1.17884594,101900.0,101890.0,4.9e-07]
[1737939718990,0.196397,101880.0,101870.0,0.64423931]
[1737939719189,1.1317381,101880.0,101870.0,0.64423931]
[1737939720290,0.196416,101870.0,101860.0,0.00014749]
[1737939720492,0.557216,101870.0,101860.0,0.00014749]
[1737939720889,0.196416,101870.0,101860.0,0.00014749]
[1737939721102,0.65414349,101890.0,101860.0,0.57468859]
[1737939721103,0.00014749,101890.0,101860.0,0.57468859]
[1737939721292,0.00014749,101890.0,101880.0,0.7709381]
[1737939721600,0.33884376,101920.0,101900.0,0.196357]
[1737939721799,0.196334,101920.0,101900.0,0.3608]
[1737939722096,0.196301,101930.0,101920.0,0.19632]
[1737939722303,0.196301,101930.0,101910.0,0.3608]
[1737939722594,0.196301,101930.0,101920.0,0.19632]
[1737939722802,0.196301,101930.0,101920.0,1.69632]
[1737939722803,0.19644849,101930.0,101920.0,1.69632]
[1737939723096,0.3608,101950.0,101930.0,0.196286]
[1737939723298,0.196263,101950.0,101930.0,0.312086]
[1737939723602,0.196282,101940.0,101930.0,0.557086]
[1737939723799,0.3608,101950.0,101930.0,0.3608]
[1737939724003,0.196265,101950.0,101940.0,0.557082]
[1737939724296,0.56548215,101970.0,101950.0,0.196262]
[1737939724488,0.56548215,101970.0,101950.0,0.557062]
[1737939724688,0.196243,101960.0,101950.0,0.557062]
[1737939725193,0.196243,101960.0,101950.0,0.196262]
[1737939725505,0.196255,101960.0,101940.0,0.312077]
[1737939725703,0.196255,101960.0,101950.0,0.196262]
[1737939725901,0.196255,101960.0,101950.0,1.696262]
[1737939726499,0.196255,101960.0,101950.0,1.5]
[1737939726798,0.196275,101950.0,101930.0,0.55724449]
[1737939727201,0.3608,101950.0,101930.0,1.69644449]
[1737939727399,0.196276,101950.0,101930.0,1.69644449]
[1737939727695,0.196282,101940.0,101930.0,0.19644449]
[1737939728299,0.3608,101960.0,101940.0,0.196277]
[1737939728493,0.3608,101960.0,101940.0,0.557077]
[1737939728494,0.557051,101960.0,101940.0,0.557077]
[1737939729202,0.28217798,101960.0,101950.0,0.196262]
[1737939729592,0.28217798,101960.0,101940.0,0.557079]
[1737939730099,0.196262,101950.0,101940.0,0.566079]
[1737939730590,0.28217598,101960.0,101940.0,0.566079]
[1737939730995,0.28217598,101960.0,101940.0,0.205279]
[1737939731299,0.28217598,101960.0,101940.0,0.009]
[1737939731300,0.557062,101950.0,101940.0,0.009]
[1737939732300,0.196262,101950.0,101940.0,0.566082]
[1737939732495,0.557047,101960.0,101940.0,0.566082]
[1737939732694,0.196262,101950.0,101940.0,0.566082]
[1737939732906,0.196262,101950.0,101940.0,0.3608]
[1737939733106,0.196262,101950.0,101940.0,0.006]
[1737939733400,0.557062,101950.0,101940.0,0.006]
[1737939734106,0.3608,101950.0,101930.0,0.00014749]
[1737939734301,0.196262,101950.0,101940.0,0.006]
[1737939734903,0.557062,101950.0,101940.0,0.006]
[1737939735295,0.196281,101940.0,101930.0,0.00014749]
[1737939735500,0.196359,101900.0,101890.0,1.319375]
[1737939735906,0.196359,101900.0,101890.0,2.819375]
[1737939736102,0.196344,101910.0,101900.0,0.196356]
[1737939736308,0.196344,101910.0,101900.0,0.557156]
[1737939736495,0.3608,101920.0,101900.0,0.3608]
[1737939736694,0.196339,101910.0,101900.0,0.3608]
[1737939737205,0.196339,101910.0,101900.0,0.009]
[1737939737607,0.36094749,101920.0,101910.0,0.196339]
[1737939737608,0.19647249,101920.0,101910.0,0.196339]
[1737939738201,0.00014749,101920.0,101910.0,0.557139]
[1737939738403,0.00014749,101920.0,101910.0,0.682639]
[1737939739008,0.19646749,101920.0,101910.0,0.682639]
[1737939739212,0.19746749,101920.0,101910.0,0.690639]
[1737939740102,0.00114749,101920.0,101910.0,0.690639]
[1737939741417,0.00114749,101920.0,101910.0,2.190639]
[1737939741804,0.55826749,101920.0,101910.0,1.508]
[1737939742000,0.69695956,101920.0,101910.0,1.508]
[1737939742707,0.69695956,101920.0,101910.0,0.008]
[1737939744213,0.705848,101920.0,101910.0,0.008]
[1737939744409,0.55826749,101920.0,101910.0,0.008]
[1737939744913,0.69695956,101920.0,101910.0,0.008]
[1737939745607,0.55826749,101920.0,101910.0,0.008]
[1737939745810,0.19746749,101920.0,101910.0,0.204339]
[1737939746216,0.00114749,101920.0,101910.0,0.70383107]
[1737939746513,1e-08,101920.0,101910.0,1.07043107]
[1737939746917,1e-08,101920.0,101910.0,1.37043107]
[1737939747116,0.557048,101960.0,101950.0,0.196262]
[1737939747510,0.51131361,101960.0,101950.0,0.196262]
[1737939747713,0.51131361,101960.0,101950.0,1.696262]
[1737939748415,0.31506561,101960.0,101950.0,2.057062]
[1737939749115,0.31806561,101960.0,101950.0,2.057062]
[1737939749513,0.31806561,101960.0,101950.0,2.294962]
[1737939749814,0.31806561,101960.0,101950.0,2.50861353]
[1737939750019,0.196208,101980.0,101970.0,0.196224]
[1737939750715,0.196208,101980.0,101970.0,1.696224]
[1737939750914,0.77065953,101980.0,101970.0,1.5]
[1737939751105,0.557008,101980.0,101970.0,1.5]
[1737939751513,0.196224,101970.0,101960.0,0.00014749]
[1737939751709,0.557024,101970.0,101960.0,0.00014749]
[1737939751921,0.66618985,101970.0,101960.0,0.00014749]
[1737939752317,1.00215153,101970.0,101940.0,0.3608]
[1737939752515,0.55707,101950.0,101930.0,0.557098]
[1737939752713,0.196281,101940.0,101930.0,0.196298]
[1737939752914,0.196281,101940.0,101930.0,0.3608]
[1737939753310,0.557066,101950.0,101930.0,0.55709]
[1737939753514,0.55721349,101950.0,101930.0,0.55709]
[1737939753710,0.196281,101940.0,101930.0,0.56609]
[1737939753919,0.196281,101940.0,101930.0,0.009]
[1737939754919,0.557081,101940.0,101930.0,0.009]
[1737939755424,0.196281,101940.0,101930.0,0.009]
[1737939755828,0.19641349,101950.0,101930.0,0.58345153]
[1737939756012,0.19641349,101950.0,101940.0,0.557081]
[1737939756216,0.00014749,101950.0,101940.0,0.557081]
[1737939756425,0.08588918,101970.0,101960.0,0.196243]
[1737939756718,0.08588918,101970.0,101960.0,0.77069453]
[1737939756925,0.08588918,101970.0,101960.0,0.78595311]
[1737939757110,0.08588918,101970.0,101960.0,2.28595311]
[1737939757519,0.196243,101960.0,101950.0,0.804459]
[1737939757713,0.557043,101960.0,101950.0,0.00014749]
[1737939757915,0.314443,101960.0,101950.0,0.00014749]
[1737939758115,0.675243,101960.0,101950.0,0.00014749]
[1737939759429,0.675243,101960.0,101950.0,0.00414749]
[1737939759817,0.196281,101940.0,101930.0,2.14342971]
[1737939760021,0.196281,101940.0,101930.0,0.64342971]
[1737939760220,0.17774684,101940.0,101930.0,1.00422971]
[1737939760622,0.17774684,101940.0,101930.0,0.64342971]
[1737939760821,0.17774684,101940.0,101930.0,1.20053071]
[1737939761523,0.00014749,101950.0,101940.0,0.196281]
[1737939761722,0.00014749,101950.0,101940.0,0.77073253]
[1737939763024,0.19640949,101950.0,101940.0,0.3608]
[1737939763230,0.19640949,101950.0,101930.0,0.801698]
[1737939763231,0.196281,101940.0,101930.0,0.801698]
[1737939764232,0.19642349,101950.0,101930.0,0.801698]
[1737939764432,0.19642349,101950.0,101940.0,0.3608]
[1737939764732,0.19642349,101950.0,101940.0,0.557081]
[1737939765135,0.19642349,101950.0,101930.0,0.801695]
[1737939765136,0.196281,101940.0,101930.0,0.801695]
[1737939765435,0.196281,101940.0,101930.0,0.3608]
[1737939766222,0.196281,101940.0,101920.0,2.17663449]
[1737939766418,0.196281,101940.0,101930.0,0.004]
[1737939767129,0.557081,101940.0,101930.0,0.004]
[1737939767433,0.677281,101940.0,101930.0,0.004]
[1737939768832,0.196301,101930.0,101920.0,0.00939749]
[1737939769017,0.557101,101930.0,101920.0,0.00939749]
[1737939769224,0.196301,101930.0,101920.0,0.00939749]
[1737939769426,0.196301,101930.0,101920.0,0.00139749]
[1737939770028,0.196301,101930.0,101920.0,0.37019749]
[1737939770233,0.557101,101930.0,101920.0,0.00939749]
[1737939770439,0.196301,101930.0,101920.0,0.00939749]
[1737939771529,0.69582734,101930.0,101920.0,0.00939749]
[1737939772532,0.49952634,101930.0,101890.0,1.00422971]
[1737939772732,0.196359,101900.0,101890.0,1.00422971]
[1737939773127,0.196359,101900.0,101890.0,2.50422971]
[1737939774039,0.196359,101900.0,101890.0,2.70060771]
[1737939774233,0.196359,101900.0,101890.0,2.70960771]
[1737939774429,0.196359,101900.0,101890.0,2.51322971]
[1737939774630,0.69588534,101900.0,101890.0,0.009]
[1737939774937,0.557159,101900.0,101890.0,0.009]
[1737939775130,0.69588534,101900.0,101890.0,0.009]
[1737939775331,0.196359,101900.0,101890.0,0.3698]
[1737939776132,0.197359,101900.0,101890.0,0.3698]
[1737939776330,0.33608534,101900.0,101890.0,0.009]
[1737939776527,0.196378,101890.0,101880.0,0.36094749]
[1737939777031,0.196378,101890.0,101880.0,1.86094749]
[1737939778535,0.69590434,101890.0,101880.0,0.00014749]
[1737939778931,0.69690434,101890.0,101880.0,0.00614749]
[1737939779540,0.33610434,101890.0,101880.0,0.00614749]
[1737939780041,0.69690434,101890.0,101880.0,0.00614749]
[1737939782342,0.82520434,101890.0,101880.0,0.00614749]
[1737939782640,0.95570434,101890.0,101880.0,0.00614749]
[1737939783137,0.33610434,101890.0,101880.0,0.00614749]
[1737939783534,0.69690434,101890.0,101880.0,0.00614749]
[1737939783733,0.3618,101890.0,101880.0,0.00614749]
[1737939783937,0.49952634,101890.0,101880.0,0.00614749]
[1737939784140,0.69590434,101890.0,101880.0,0.00614749]
[1737939785137,0.33510434,101890.0,101880.0,0.00614749]
[1737939786139,0.34407727,101890.0,101880.0,0.00614749]
[1737939786343,0.20535093,101890.0,101880.0,0.00614749]
[1737939787949,0.196378,101890.0,101880.0,0.56334449]
[1737939788138,0.196378,101890.0,101880.0,0.81414449]
[1737939788838,0.196378,101890.0,101880.0,0.94114449]
[1737939789043,0.09510699,101910.0,101890.0,0.196361]
[1737939789247,0.11451891,101920.0,101900.0,0.86032634]
[1737939789541,0.14306537,101930.0,101920.0,0.19632]
[1737939789742,0.17209005,101940.0,101930.0,0.196301]
[1737939789946,0.39683855,101960.0,101930.0,0.49952634]
[1737939790142,0.20059355,101960.0,101950.0,1.05658834]
[1737939790343,0.20059355,101960.0,101950.0,2.55658834]
[1737939790735,0.20059355,101960.0,101950.0,2.417862]
[1737939790940,0.20059355,101960.0,101950.0,2.55658834]
[1737939792048,0.19637149,101970.0,101960.0,0.196243]
[1737939792237,0.19637149,101970.0,101960.0,0.557043]
[1737939792543,0.19359302,101980.0,101960.0,0.49952634]
[1737939792753,0.19359302,101980.0,101970.0,0.3608]
[1737939794248,0.19359302,101980.0,101970.0,0.69575034]
[1737939794446,0.15793447,102000.0,101980.0,0.196204]
[1737939794447,0.196191,101990.0,101980.0,0.196204]
[1737939794642,0.196191,101990.0,101980.0,0.557004]
[1737939794843,0.19565117,101990.0,101980.0,0.557004]
[1737939795249,0.19565117,101990.0,101980.0,0.3608]
[1737939795641,0.296167,102000.0,101990.0,0.196185]
[1737939795949,1.52553778,102070.0,101990.0,0.196185]
[1737939795950,0.196074,102050.0,101990.0,0.98729368]
[1737939796143,0.196074,102050.0,102030.0,0.69562934]
[1737939796344,0.52460264,102060.0,102040.0,0.3608]
[1737939796652,0.71186599,102060.0,102050.0,0.3608]
[1737939796855,0.19607,102050.0,102040.0,0.55702949]
[1737939797043,0.19607,102050.0,102040.0,0.36094749]
[1737939797742,0.18029732,102050.0,102040.0,0.36094749]
[1737939798144,0.51581199,102060.0,102040.0,0.72174749]
[1737939798344,0.71186399,102060.0,102050.0,0.3608]
[1737939799747,0.71586399,102060.0,102050.0,0.3608]
[1737939800353,0.51981199,102060.0,102050.0,0.55687]
[1737939800549,0.85458933,102060.0,102050.0,0.3608]
[1737939800955,0.200051,102060.0,102050.0,0.3608]
[1737939801252,0.200051,102060.0,102050.0,0.3561]
[1737939803146,0.33877734,102060.0,102050.0,0.3561]
[1737939803344,0.19607,102050.0,102040.0,0.36094749]
[1737939803553,0.33479634,102050.0,102040.0,0.36094749]
[1737939803954,0.19607,102050.0,102040.0,0.36094749]
[1737939804153,0.19607,102050.0,102040.0,0.55703649]
[1737939804351,0.200055,102060.0,102040.0,0.55703649]
[1737939804555,0.200055,102060.0,102050.0,0.3608]
[1737939804855,0.004,102060.0,102050.0,0.55687]
[1737939805050,0.004,102060.0,102050.0,0.69559634]
[1737939805657,0.200051,102060.0,102050.0,0.55687]
[1737939805958,0.196051,102060.0,102050.0,0.55687]
[1737939806545,0.200051,102060.0,102050.0,0.55687]
[1737939807361,0.004,102060.0,102050.0,0.55687]
[1737939807660,0.004,102060.0,102050.0,0.69559634]
[1737939810550,0.004,102060.0,102050.0,2.19559634]
[1737939812461,0.200051,102060.0,102050.0,0.55687]
[1737939812966,0.004,102060.0,102050.0,0.69559634]
[1737939814959,0.200051,102060.0,102050.0,0.55687]
[1737939815761,0.200051,102060.0,102050.0,0.3608]
[1737939815956,0.33877734,102060.0,102050.0,0.3608]
[1737939816159,0.19607,102050.0,102040.0,2.19628083]
[1737939816358,0.19607,102050.0,102040.0,1.86094749]
[1737939817154,0.19607,102050.0,102040.0,2.05703649]
[1737939817868,0.19907,102050.0,102040.0,2.05703649]
[1737939818867,0.003,102050.0,102040.0,2.19576283]
[1737939823071,0.003,102050.0,102040.0,0.83448917]
[1737939823269,0.003,102050.0,102040.0,1.08588917]
[1737939823465,0.003,102050.0,102040.0,2.58588917]
[1737939823773,0.003,102050.0,102040.0,2.62701347]
[1737939823969,0.003,102050.0,102040.0,2.48828713]
[1737939824162,0.003,102050.0,102040.0,2.62701347]
[1737939825467,0.324717,102080.0,102040.0,2.62701347]
[1737939825674,0.30918284,102080.0,102070.0,0.556831]
[1737939826371,0.196001,102090.0,102080.0,0.196004]
[1737939826578,0.43580011,102100.0,102090.0,0.195993]
[1737939826772,0.426477,102100.0,102090.0,0.195993]
[1737939826972,0.195993,102090.0,102080.0,0.556806]
[1737939827180,0.195993,102090.0,102080.0,0.55695349]
[1737939827670,0.33871934,102090.0,102080.0,0.40324925]
[1737939827871,0.33871934,102090.0,102080.0,0.36194749]
[1737939828274,0.33871934,102090.0,102080.0,0.40329406]
[1737939828481,0.199993,102090.0,102080.0,0.40329406]
[1737939828669,0.331193,102090.0,102080.0,0.40329406]
[1737939829070,0.33065418,102090.0,102080.0,0.40329406]
[1737939829375,0.33065418,102090.0,102080.0,0.59930606]
[1737939830581,0.33065418,102090.0,102080.0,0.65750421]
[1737939830879,0.32665418,102090.0,102080.0,0.65750421]
[1737939831281,0.32665418,102090.0,102080.0,0.61462136]
[1737939831683,0.32611536,102090.0,102080.0,0.59930606]
[1737939833084,0.32611536,102090.0,102080.0,0.60875528]
[1737939834188,0.30758121,102090.0,102080.0,0.60875528]
[1737939835494,0.44630755,102090.0,102080.0,0.40329406]
[1737939835694,0.44630755,102090.0,102080.0,0.04249406]
[1737939835887,0.196012,102080.0,102070.0,0.3608]
[1737939836088,0.324412,102080.0,102070.0,0.40226733]
[1737939836297,0.324412,102080.0,102070.0,0.73702467]
[1737939836799,0.324412,102080.0,102070.0,0.69048063]
[1737939836995,0.30587785,102080.0,102070.0,0.59829833]
[1737939837197,0.30587785,102080.0,102070.0,0.69048063]
[1737939837396,0.30687785,102080.0,102070.0,0.59829833]
[1737939837595,0.39906015,102080.0,102070.0,0.40226733]
[1737939838394,0.30687785,102080.0,102070.0,0.40226733]
[1737939839701,0.30687785,102080.0,102070.0,0.04146733]
[1737939839702,0.39906015,102080.0,102070.0,0.04146733]
[1737939840297,1.05986015,102080.0,102070.0,0.04146733]
[1737939840497,0.75986015,102080.0,102070.0,0.04146733]
[1737939840703,1.05986015,102080.0,102070.0,0.04146733]
[1737939841092,0.196031,102070.0,102060.0,0.40981593]
[1737939841297,0.322131,102070.0,102060.0,0.45094697]
[1737939841598,0.322131,102070.0,102060.0,0.46621607]
[1737939842210,0.4143133,102070.0,102060.0,0.46621607]
[1737939842398,0.4149195,102070.0,102060.0,0.46621607]
[1737939842598,0.3227372,102070.0,102060.0,0.82701607]
[1737939842803,0.3227372,102070.0,102060.0,0.46621607]
[1737939843002,0.4169195,102070.0,102060.0,0.46621607]
[1737939844706,0.4169195,102070.0,102060.0,0.2903336]
[1737939844905,0.4169195,102070.0,102060.0,0.05654763]
[1737939845206,0.3247372,102070.0,102060.0,0.41734763]
[1737939845595,0.3247372,102070.0,102060.0,0.40207853]
[1737939845800,0.4169195,102070.0,102060.0,0.40207853]
[1737939846108,0.7777195,102070.0,102060.0,0.04127853]
[1737939846301,0.196051,102060.0,102050.0,0.00146982]
[1737939846497,0.2882333,102060.0,102050.0,0.36226982]
[1737939846699,0.4130333,102060.0,102050.0,0.42010007]
[1737939846898,0.4130333,102060.0,102050.0,0.05930007]
[1737939847105,0.320851,102060.0,102050.0,0.05930007]
[1737939847609,0.320851,102060.0,102050.0,0.01677385]
[1737939847800,0.320851,102060.0,102050.0,0.00146982]
[1737939847998,0.320851,102060.0,102050.0,0.36226982]
[1737939848707,0.320851,102060.0,102050.0,0.37757674]
[1737939848909,0.320851,102060.0,102050.0,0.66582904]
[1737939849212,0.320851,102060.0,102050.0,0.57364674]
[1737939849404,0.320851,102060.0,102050.0,0.37757674]
[1737939850006,0.4130333,102060.0,102050.0,0.37757674]
[1737939850206,0.320851,102060.0,102050.0,0.37757674]
[1737939850608,0.4130333,102060.0,102050.0,0.37757674]
[1737939850906,0.5052156,102060.0,102050.0,0.37757674]
[1737939851113,0.4130333,102060.0,102050.0,0.01677674]
[1737939851313,0.320851,102060.0,102050.0,0.37757674]
[1737939851911,0.4130333,102060.0,102050.0,0.37757674]
[1737939852314,0.320851,102060.0,102050.0,0.37757674]
[1737939852814,0.196051,102060.0,102050.0,0.37757674]
[1737939854314,0.196051,102060.0,102050.0,0.37758965]
[1737939854810,0.196051,102060.0,102050.0,0.37611983]
[1737939855113,0.2882333,102060.0,102050.0,0.37611983]
[1737939855907,0.29764676,102060.0,102050.0,0.37611983]
[1737939856213,0.29764676,102060.0,102050.0,0.37612048]
[1737939856815,0.29764676,102060.0,102050.0,0.40063294]
[1737939857414,0.75062906,102060.0,102050.0,0.03983294]
[1737939857711,0.38982906,102060.0,102050.0,0.03983294]
[1737939858213,0.75062906,102060.0,102050.0,0.03983294]
[1737939858711,0.55457806,102060.0,102040.0,0.36094749]
[1737939858914,0.4090523,102050.0,102040.0,0.36094749]
[1737939859106,0.4090523,102050.0,102040.0,0.00014749]
[1737939859627,0.5350523,102050.0,102040.0,0.00014749]
[1737939859921,0.5350523,102050.0,102040.0,0.01543412]
[1737939860308,0.5350523,102050.0,102040.0,0.01843412]
[1737939862114,0.5734923,102050.0,102040.0,0.01843412]
[1737939863209,0.6812723,102050.0,102040.0,0.01843412]
[1737939864319,1.0420723,102050.0,102040.0,0.01843412]
[1737939865808,1.0420723,102050.0,102040.0,0.04295241]
[1737939866016,0.6812723,102050.0,102040.0,0.04295241]
[1737939866517,0.6812723,102050.0,102040.0,0.04298851]
[1737939867217,0.6812723,102050.0,102040.0,0.04298807]
[1737939868321,0.6891023,102050.0,102040.0,0.04298807]
[1737939868618,0.6891023,102050.0,102040.0,0.04298727]
[1737939869115,0.35012,102050.0,102040.0,0.69205857]
[1737939869322,0.32805879,102050.0,102040.0,0.95025857]
[1737939869620,0.32805879,102050.0,102040.0,0.85807627]
[1737939869821,0.32805879,102050.0,102040.0,0.83355948]
[1737939870013,0.32805879,102050.0,102040.0,2.33355948]
[1737939870211,0.32805879,102050.0,102040.0,0.83355948]
[1737939870413,0.44333013,102050.0,102040.0,0.83355948]
[1737939871116,0.26932134,102050.0,102040.0,0.92574178]
[1737939871713,0.46539134,102050.0,102040.0,0.83355948]
[1737939871919,0.55757364,102050.0,102040.0,0.01847048]
[1737939872117,0.81917364,102050.0,102040.0,0.01847048]
[1737939872916,0.81917364,102050.0,102040.0,0.04298772]
[1737939874013,1.17997364,102050.0,102040.0,0.00314749]
[1737939875123,0.049028,102040.0,102010.0,0.77193872]
[1737939875315,0.6491283,102020.0,102010.0,0.40966844]
[1737939875516,0.6491283,102020.0,102010.0,0.81931218]
[1737939875720,1.1044046,102020.0,101990.0,0.29559292]
[1737939876021,0.7413496,102000.0,101990.0,0.29559292]
[1737939876219,0.7413496,102000.0,101990.0,0.29574041]
[1737939876613,0.8626496,102000.0,101990.0,0.29574041]
[1737939877018,0.8871496,102000.0,101990.0,0.29574041]
[1737939877328,0.8871496,102000.0,101990.0,0.30474041]
[1737939877628,0.9909646,102000.0,101970.0,0.75265251]
[1737939877826,1.1021876,101980.0,101970.0,0.75265251]
[1737939878220,1.0100053,101980.0,101970.0,0.74829523]
[1737939878522,1.1021876,101980.0,101970.0,0.51699123]
[1737939878920,1.2260876,101980.0,101970.0,0.51699123]
[1737939879321,0.196242,101970.0,101960.0,0.00014749]
[1737939879516,0.7414066,101970.0,101960.0,0.00014749]
[1737939879920,0.7414066,101970.0,101960.0,0.01531556]
[1737939880533,0.7414066,101970.0,101960.0,0.00014749]
[1737939880831,0.196261,101960.0,101950.0,0.40198662]
[1737939881023,0.6492433,101960.0,101950.0,0.40198662]
[1737939882422,0.7178933,101960.0,101950.0,0.40198662]
[1737939883330,0.7571233,101960.0,101950.0,0.40198662]
[1737939883832,0.7571233,101960.0,101950.0,0.40398662]
[1737939885130,0.8807233,101960.0,101950.0,0.40398662]
[1737939885426,0.8807233,101960.0,101950.0,0.002]
[1737939886125,0.7571233,101960.0,101950.0,0.002]
[1737939886326,0.2000623,101960.0,101950.0,0.01716888]
[1737939886522,0.10788,101960.0,101950.0,0.57425088]
[1737939886831,0.00014749,101970.0,101960.0,0.196263]
[1737939887040,0.11527134,101980.0,101970.0,0.196243]
[1737939887333,0.2862724,102000.0,101990.0,0.196205]
[1737939887523,0.2862724,102000.0,101990.0,0.93297388]
[1737939887929,0.52202563,102020.0,101990.0,0.73676888]
[1737939888130,0.52202563,102020.0,102010.0,0.196166]
[1737939888325,0.55063563,102020.0,102010.0,0.21133488]
[1737939888526,0.95772877,102020.0,102010.0,0.21133488]
[1737939888834,0.36323244,102020.0,102000.0,0.196183]
[1737939889021,0.83391688,102010.0,102000.0,0.0154155]
[1737939889426,0.94811688,102010.0,102000.0,0.0154155]
[1737939889620,0.196199,102000.0,101980.0,0.4914]
[1737939889829,0.556971,102010.0,101990.0,0.556998]
[1737939890135,0.33464644,102010.0,101990.0,2.07232934]
[1737939890334,0.33466144,102000.0,101990.0,0.37613134]
[1737939890522,0.69546144,102000.0,101990.0,0.01533134]
[1737939890929,0.69546144,102000.0,101990.0,0.0153305]
[1737939891123,0.63775088,102000.0,101980.0,0.00014749]
[1737939891323,0.80936044,101990.0,101980.0,0.01533216]
[1737939891537,0.196243,101970.0,101960.0,0.001471]
[1737939891740,0.33471844,101970.0,101960.0,0.0168055]
[1737939891937,0.196243,101970.0,101960.0,0.0168055]
[1737939892739,0.69551844,101970.0,101960.0,0.0153345]
[1737939893322,0.196243,101970.0,101960.0,0.2115975]
[1737939893536,0.55718249,101980.0,101960.0,0.5723975]
[1737939894435,0.55718249,101980.0,101960.0,0.5743975]
[1737939895033,0.55718249,101980.0,101970.0,0.1252]
[1737939895225,0.55718249,101980.0,101970.0,0.1405345]
[1737939895226,0.20618249,101980.0,101970.0,0.1405345]
[1737939896032,0.20618249,101980.0,101970.0,0.3367775]
[1737939896535,0.20618249,101980.0,101970.0,0.6975775]
[1737939897124,0.00994749,101980.0,101970.0,0.6975775]
[1737939897324,0.01094749,101980.0,101970.0,2.33605294]
[1737939897535,0.196193,102000.0,101990.0,0.196205]
[1737939897731,0.33466844,102000.0,101990.0,0.5723395]
[1737939897927,0.196193,102000.0,101990.0,0.3761345]
[1737939898232,0.196193,102000.0,101990.0,0.40066139]
[1737939898437,0.196193,102000.0,101990.0,0.59686639]
[1737939898635,0.196193,102000.0,101990.0,0.03986139]
[1737939898636,0.33466844,102000.0,101990.0,0.03986139]
[1737939898836,0.69546844,102000.0,101990.0,0.03986139]
[1737939899224,0.49927544,102000.0,101990.0,0.01533168]
[1737939899429,0.71996144,102000.0,101990.0,0.01533168]
[1737939899635,0.72780144,102000.0,101990.0,0.01533168]
[1737939900137,0.73480144,102000.0,101990.0,0.01633123]
[1737939901036,0.235526,102000.0,101990.0,0.01633123]
[1737939901232,0.03934,102000.0,101990.0,0.57333623]
[1737939901438,0.235526,102000.0,101990.0,0.57333623]
[1737939901743,0.37400144,102000.0,101990.0,0.01633123]
[1737939902034,0.73480144,102000.0,101990.0,0.01633123]
[1737939902539,0.03934,102000.0,101990.0,0.51560667]
[1737939902835,0.03934,102000.0,101990.0,0.57333623]
[1737939903532,0.03934,102000.0,101990.0,0.71181167]
[1737939903737,0.03934,102000.0,101990.0,0.57333623]
[1737939904042,0.03234,102000.0,101990.0,0.57233623]
[1737939904336,0.20999184,102000.0,101990.0,0.57433623]
[1737939904640,0.23856184,102000.0,101990.0,0.57433623]
[1737939904938,0.04237584,102000.0,101990.0,0.71281167]
[1737939905135,0.00014749,102010.0,102000.0,0.196186]
[1737939905329,0.06861,102020.0,102010.0,0.196166]
[1737939905526,0.06861,102020.0,102010.0,0.73529648]
[1737939905731,0.00932524,102060.0,102010.0,0.83913048]
[1737939905929,0.235264,102060.0,102050.0,0.19609]
[1737939906134,0.235264,102060.0,102050.0,0.59674504]
[1737939906540,0.37373944,102060.0,102050.0,0.03985504]
[1737939906942,0.40879944,102060.0,102050.0,0.03985504]
[1737939907439,0.279324,102060.0,102050.0,0.04085504]
[1737939908137,0.77859944,102060.0,102050.0,0.04085504]
[1737939908335,0.77859944,102060.0,102050.0,0.01633123]
[1737939909341,0.78642944,102060.0,102050.0,0.01633123]
[1737939909942,0.19609,102050.0,102040.0,0.00014749]
[1737939910138,0.81666544,102050.0,102040.0,0.03998837]
[1737939911042,0.81666544,102050.0,102040.0,0.03998901]
[1737939911341,0.81666544,102050.0,102040.0,0.01647115]
[1737939911342,0.82366544,102050.0,102040.0,0.01647115]
[1737939912641,0.7774785,102050.0,102040.0,0.01647115]
[1737939912938,0.7774785,102050.0,102040.0,0.00114749]
[1737939913141,0.32439,102050.0,102040.0,0.04099119]
[1737939913346,0.33222,102050.0,102040.0,0.04099119]
[1737939914336,0.01483,102050.0,102040.0,0.49407969]
[1737939914634,0.01483,102050.0,102040.0,0.69018869]
[1737939914832,0.09187,102060.0,102050.0,0.19609]
[1737939915034,0.09187,102060.0,102050.0,0.6890222]
[1737939915233,0.17822299,102060.0,102050.0,0.6890222]
[1737939915454,0.17822299,102060.0,102050.0,0.5967337]
[1737939915834,0.37429299,102060.0,102050.0,0.5967337]
[1737939916037,0.38212299,102060.0,102050.0,0.5967337]
[1737939916243,0.47441149,102060.0,102050.0,0.5967337]
[1737939916439,0.47441149,102060.0,102050.0,0.0398437]
[1737939916745,0.90996583,102060.0,102050.0,0.0398437]
[1737939916937,0.19609,102050.0,102040.0,0.00014749]
[1737939917240,0.196147,102020.0,102010.0,0.36227027]
[1737939917444,0.6492355,102020.0,102010.0,0.00147027]
[1737939917746,0.196192,102000.0,101980.0,0.85645652]
[1737939917949,0.2884805,102000.0,101990.0,0.557005]
[1737939918334,0.196192,102000.0,101990.0,0.557005]
[1737939919030,0.220692,102000.0,101990.0,0.557005]
[1737939919234,0.220692,102000.0,101990.0,0.55660055]
[1737939919649,0.35920458,102000.0,101990.0,0.19580055]
[1737939919836,0.220692,102000.0,101990.0,0.19580055]
[1737939920238,0.196205,101990.0,101980.0,1.50014749]
[1737939920541,0.69551758,101990.0,101980.0,1.50014749]
[1737939921038,0.33471758,101990.0,101980.0,1.50014749]
[1737939921239,0.33471758,101990.0,101980.0,1.86094749]
[1737939921435,0.69551758,101990.0,101980.0,1.50014749]
[1737939921631,0.69551758,101990.0,101980.0,0.00014749]
[1737939921832,0.69551758,101990.0,101960.0,0.17524052]
[1737939921833,0.196243,101970.0,101960.0,0.17524052]
[1737939922040,0.33475558,101970.0,101960.0,0.17524052]
[1737939922240,0.69555558,101970.0,101960.0,0.17524052]
[1737939923047,0.73477558,101970.0,101960.0,0.17524052]
[1737939923551,0.37397558,101970.0,101960.0,0.18424052]
[1737939923739,0.73477558,101970.0,101960.0,0.18424052]
[1737939923941,0.196263,101960.0,101950.0,9.83e-05]
[1737939924135,0.83408816,101960.0,101950.0,9.83e-05]
[1737939924540,0.63782516,101960.0,101940.0,0.29206753]
[1737939924747,0.69559458,101950.0,101940.0,0.29206753]